fUST/lending_fUST_20240414
["ID","MTS","AMOUNT","RATE_DAILY","PERIOD"]
[322468635,1713034245811,-277.03921209,0.00033696,4]
[322468637,1713034245821,-500.0,0.00033697,7]
[322468639,1713034245832,-500.0,0.00033697,7]
[322468641,1713034245842,-1404.8,0.00033697,7]
[322468643,1713034245851,-253.9,0.00033697,2]
[322468645,1713034245860,-253.9,0.00033697,2]
[322468647,1713034245869,-364.05256396,0.00033697,7]
[322468649,1713034245878,-151.0,0.00033697,2]
[322468651,1713034245887,-6138.13,0.00033697,2]
[322468653,1713034245902,-500.0,0.00033698,7]
[322468655,1713034245911,-253.9,0.00033698,2]
[322468657,1713034245921,-253.9,0.00033698,2]
[322468659,1713034245931,-500.0,0.00033698,7]
[322468661,1713034245940,-151.0,0.00033698,2]
[322468663,1713034245950,-734.77,0.00033698,7]
[322468665,1713034245959,-894.15,0.00033698,7]
[322468667,1713034245969,-500.0,0.00033698,7]
[322468669,1713034245980,-500.0,0.00033698,7]
[322468671,1713034245989,-577.65927382,0.00033698,7]
[322468673,1713034246000,-1079.46,0.00033698,7]
[322468675,1713034246009,-151.0,0.00033698,2]
[322468678,1713034246019,-151.0,0.00033698,2]
[322468679,1713034246028,-151.0,0.00033698,2]
[322468681,1713034246038,-151.0,0.00033698,2]
[322468684,1713034246048,-500.0,0.00033698,7]
[322468685,1713034246057,-362.74231789,0.00033698,7]
[322468687,1713034246066,-694.657353,0.00033698,2]
[322468689,1713034246076,-694.657353,0.00033698,2]
[322468691,1713034246085,-694.657353,0.00033698,2]
[322468693,1713034246096,-694.657353,0.00033698,2]
[322468695,1713034246105,-500.0,0.00033698,7]
[322468697,1713034246114,-500.0,0.00033698,7]
[322468700,1713034246124,-849.98,0.00033698,7]
[322468702,1713034246134,-151.0,0.00033698,2]
[322468704,1713034246144,-271.68179,0.00033698,2]
[322468706,1713034246153,-1998.2,0.00033698,7]
[322468708,1713034246165,-783.49,0.00033698,7]
[322468710,1713034246174,-500.0,0.00033698,7]
[322468712,1713034246184,-500.0,0.00033698,7]
[322468714,1713034246194,-151.0,0.00033698,2]
[322468716,1713034246203,-151.0,0.00033698,2]
[322468718,1713034246213,-900.938851,0.00033698,2]
[322468720,1713034246222,-900.938851,0.00033698,2]
[322468722,1713034246231,-900.938851,0.00033698,2]
[322468724,1713034246240,-900.938851,0.00033698,2]
[322468726,1713034246250,-412.228206,0.00033698,2]
[322468728,1713034246259,-412.228206,0.00033698,2]
[322468730,1713034246267,-412.228206,0.00033698,2]
[322468732,1713034246277,-412.228206,0.00033698,2]
[322468734,1713034246286,-191.322643,0.00033698,2]
[322468736,1713034246295,-500.0,0.00033698,7]
[322468738,1713034246304,-500.0,0.00033698,7]
[322468740,1713034246313,-151.0,0.00033698,2]
[322468742,1713034246322,-500.0,0.00033698,7]
[322468744,1713034246333,-630.98448967,0.00033698,7]
[322468746,1713034246342,-631.18,0.00033698,7]
[322468748,1713034246351,-500.0,0.00033698,7]
[322468750,1713034246360,-500.0,0.00033698,7]
[322468752,1713034246369,-151.0,0.00033698,2]
[322468754,1713034246378,-500.0,0.00033698,7]
[322468756,1713034246387,-151.0,0.00033698,2]
[322468758,1713034246397,-166.831049,0.00033698,2]
[322468760,1713034246406,-166.831049,0.00033698,2]
[322468762,1713034246415,-219.17439264,0.00033698,7]
[322468764,1713034246424,-166.831049,0.00033698,2]
[322468766,1713034246433,-166.831049,0.00033698,2]
[322468768,1713034246442,-500.0,0.00033698,7]
[322468770,1713034246453,-1108.29,0.00033698,7]
[322468772,1713034246462,-500.0,0.00033698,7]
[322468774,1713034246472,-1058.01,0.00033698,7]
[322468776,1713034246481,-151.0,0.00033698,2]
[322468778,1713034246490,-3130.05,0.00033698,7]
[322468780,1713034246499,-3156.38,0.00033698,7]
[322468782,1713034246508,-151.0,0.00033698,2]
[322468784,1713034246518,-500.0,0.00033698,7]
[322468786,1713034246526,-2204.21,0.00033698,7]
[322468788,1713034246535,-1292.06,0.00033698,7]
[322468790,1713034246545,-2257.86,0.00033698,7]
[322468792,1713034246554,-184.233414,0.00033698,2]
[322468794,1713034246564,-184.233414,0.00033698,2]
[322468796,1713034246575,-184.233414,0.00033698,2]
[322468798,1713034246585,-184.233414,0.00033698,2]
[322468800,1713034246594,-2347.19,0.00033698,7]
[322468802,1713034246603,-2771.79,0.00033698,7]
[322468804,1713034246613,-5441.75,0.00033698,7]
[322468806,1713034246623,-500.0,0.00033698,7]
[322468808,1713034246632,-151.0,0.00033698,2]
[322468810,1713034246642,-151.0,0.00033698,2]
[322468812,1713034246654,-500.0,0.00033698,7]
[322468814,1713034246663,-816.31,0.00033698,7]
[322468816,1713034246672,-500.0,0.00033698,7]
[322468818,1713034246681,-530.91,0.00033698,7]
[322468821,1713034246692,-720.0,0.00033698,7]
[322468823,1713034246701,-500.0,0.00033698,7]
[322468825,1713034246710,-726.94,0.00033698,7]
[322468827,1713034246720,-500.0,0.00033698,7]
[322468829,1713034246729,-695.69,0.00033698,7]
[322468830,1713034246739,-1012.3,0.00033698,7]
[322468833,1713034246749,-2327.61,0.00033698,7]
[322468835,1713034246758,-500.0,0.00033698,7]
[322468837,1713034246767,-858.26,0.00033698,7]
[322468839,1713034246777,-500.0,0.00033698,7]
[322468841,1713034246786,-1193.187531,0.00033698,2]
[322468843,1713034246795,-1193.187531,0.00033698,2]
[322468845,1713034246804,-1193.187531,0.00033698,2]
[322468847,1713034246814,-1193.187531,0.00033698,2]
[322468849,1713034246826,-927.05,0.00033698,7]
[322468851,1713034246835,-500.0,0.00033698,7]
[322468853,1713034246844,-717.9,0.00033698,7]
[322468855,1713034246854,-2049.3,0.00033698,7]
[322468857,1713034246863,-517.41354742,0.00033698,7]
[322468859,1713034246873,-1081.927643,0.00033698,2]
[322468861,1713034246882,-1081.927643,0.00033698,2]
[322468863,1713034246891,-1081.927643,0.00033698,2]
[322468865,1713034246900,-1081.927643,0.00033698,2]
[322468867,1713034246909,-1934.65,0.00033698,7]
[322468869,1713034246918,-510.60843423,0.00033698,7]
[322468871,1713034246928,-500.0,0.00033698,7]
[322468873,1713034246937,-500.0,0.00033698,7]
[322468875,1713034246947,-1234.02,0.00033698,7]
[322468877,1713034246956,-660.39,0.00033698,7]
[322468879,1713034246968,-500.0,0.00033698,7]
[322468881,1713034246977,-8360.86,0.00033698,7]
[322468883,1713034246987,-550.48245796,0.00033698,7]
[322468885,1713034246996,-1086.08,0.00033698,7]
[322468887,1713034247006,-500.0,0.00033698,7]
[322468889,1713034247015,-30751.42,0.00033698,7]
[322468891,1713034247024,-940.83,0.00033698,7]
[322468893,1713034247034,-1345.11,0.00033698,2]
[322468895,1713034247043,-639.35,0.00033698,7]
[322468897,1713034247053,-2343.97,0.00033698,7]
[322468899,1713034247062,-574.31997449,0.00033698,7]
[322468901,1713034247081,-867.98,0.00033698,7]
[322468903,1713034247090,-162.191495,0.00033844,2]
[322468905,1713034247100,-177.0,0.000339,7]
[322468907,1713034247110,-855.02218178,0.0003397,4]
[322468909,1713034247119,-500.0,0.00033971,7]
[322468911,1713034247128,-511.08378586,0.00033971,7]
[322468913,1713034247137,-1404.8,0.00033971,7]
[322468915,1713034247147,-151.0,0.00033971,2]
[322468917,1713034247156,-151.0,0.00033971,2]
[322468919,1713034247165,-151.0,0.00033971,2]
[322468921,1713034247175,-268.373655,0.00033971,2]
[322468923,1713034247184,-500.0,0.00033972,7]
[322468925,1713034247193,-253.9,0.00033972,2]
[322468927,1713034247203,-253.9,0.00033972,2]
[322468929,1713034247213,-500.0,0.00033972,7]
[322468931,1713034247222,-151.0,0.00033972,2]
[322468933,1713034247232,-151.0,0.00033972,2]
[322468935,1713034247241,-734.77,0.00033972,7]
[322468937,1713034247251,-894.15,0.00033972,7]
[322468939,1713034247260,-500.0,0.00033972,7]
[322468941,1713034247269,-500.0,0.00033972,7]
[322468943,1713034247279,-1079.46,0.00033972,7]
[322468945,1713034247288,-151.0,0.00033972,2]
[322468947,1713034247299,-151.0,0.00033972,2]
[322468949,1713034247309,-151.0,0.00033972,2]
[322468951,1713034247318,-249.12611,0.00033972,2]
[322468953,1713034247330,-500.0,0.00033972,7]
[322468955,1713034247339,-694.657353,0.00033972,2]
[322468957,1713034247348,-694.657353,0.00033972,2]
[322468959,1713034247358,-500.0,0.00033972,7]
[322468961,1713034247367,-500.0,0.00033972,7]
[322468963,1713034247375,-849.98,0.00033972,7]
[322468965,1713034247385,-1998.2,0.00033972,7]
[322468967,1713034247394,-783.49,0.00033972,7]
[322468969,1713034247403,-500.0,0.00033972,7]
[322468971,1713034247413,-151.0,0.00033972,2]
[322468973,1713034247422,-900.938851,0.00033972,2]
[322468975,1713034247432,-900.938851,0.00033972,2]
[322468977,1713034247441,-900.938851,0.00033972,2]
[322468979,1713034247450,-900.938851,0.00033972,2]
[322468981,1713034247459,-412.228206,0.00033972,2]
[322468983,1713034247469,-412.228206,0.00033972,2]
[322468985,1713034247478,-412.228206,0.00033972,2]
[322468987,1713034247487,-412.228206,0.00033972,2]
[322468989,1713034247496,-500.0,0.00033972,7]
[322468991,1713034247505,-520.3157618,0.00033972,7]
[322468993,1713034247516,-631.18,0.00033972,7]
[322468995,1713034247525,-500.0,0.00033972,7]
[322468997,1713034247534,-500.0,0.00033972,7]
[322468999,1713034247544,-151.0,0.00033972,2]
[322469001,1713034247554,-500.0,0.00033972,7]
[322469003,1713034247563,-151.0,0.00033972,2]
[322469005,1713034247572,-166.831049,0.00033972,2]
[322469007,1713034247583,-166.831049,0.00033972,2]
[322469009,1713034247592,-500.0,0.00033972,7]
[322469011,1713034247602,-1108.29,0.00033972,7]
[322469013,1713034247611,-500.0,0.00033972,7]
[322469015,1713034247621,-1058.01,0.00033972,7]
[322469017,1713034247630,-151.0,0.00033972,2]
[322469019,1713034247639,-3130.05,0.00033972,7]
[322469021,1713034247649,-3156.38,0.00033972,7]
[322469023,1713034247659,-500.0,0.00033972,7]
[322469024,1713034247669,-2204.21,0.00033972,7]
[322469026,1713034247679,-1292.06,0.00033972,7]
[322469028,1713034247688,-2257.86,0.00033972,7]
[322469030,1713034247698,-184.233414,0.00033972,2]
[322469032,1713034247707,-184.233414,0.00033972,2]
[322469034,1713034247717,-2347.19,0.00033972,7]
[322469036,1713034247727,-2771.79,0.00033972,7]
[322469038,1713034247736,-5441.75,0.00033972,7]
[322469040,1713034247745,-500.0,0.00033972,7]
[322469042,1713034247755,-242.504132,0.00033972,2]
[322469044,1713034247764,-500.0,0.00033972,7]
[322469046,1713034247774,-816.31,0.00033972,7]
[322469048,1713034247784,-500.0,0.00033972,7]
[322469051,1713034247794,-530.91,0.00033972,7]
[322469052,1713034247803,-720.0,0.00033972,7]
[322469055,1713034247813,-500.0,0.00033972,7]
[322469057,1713034247823,-726.94,0.00033972,7]
[322469059,1713034247838,-500.0,0.00033972,7]
[322469061,1713034247848,-695.69,0.00033972,7]
[322469062,1713034247859,-1012.3,0.00033972,7]
[322469064,1713034247869,-2327.61,0.00033972,7]
[322469067,1713034247879,-500.0,0.00033972,7]
[322469069,1713034247889,-858.26,0.00033972,7]
[322469071,1713034247899,-500.0,0.00033972,7]
[322469072,1713034247908,-1193.187531,0.00033972,2]
[322469074,1713034247918,-1193.187531,0.00033972,2]
[322469076,1713034247928,-927.05,0.00033972,7]
[322469078,1713034247938,-520.40910368,0.00033972,7]
[322469080,1713034247948,-717.9,0.00033972,7]
[322469083,1713034247958,-2049.3,0.00033972,7]
[322469085,1713034247968,-1081.927643,0.00033972,2]
[322469086,1713034247978,-1081.927643,0.00033972,2]
[322469088,1713034247987,-1934.65,0.00033972,7]
[322469090,1713034247997,-500.0,0.00033972,7]
[322469092,1713034248006,-500.0,0.00033972,7]
[322469094,1713034248016,-1234.02,0.00033972,7]
[322469096,1713034248026,-660.39,0.00033972,7]
[322469098,1713034248036,-626.33451394,0.00033972,7]
[322469100,1713034248046,-8360.86,0.00033972,7]
[322469102,1713034248055,-1086.08,0.00033972,7]
[322469104,1713034248065,-500.0,0.00033972,7]
[322469106,1713034248081,-30751.42,0.00033972,7]
[322469109,1713034248092,-940.83,0.00033972,7]
[322469111,1713034248101,-1345.11,0.00033972,2]
[322469113,1713034248113,-639.35,0.00033972,7]
[322469115,1713034248123,-2343.97,0.00033972,7]
[322469117,1713034248133,-867.98,0.00033972,7]
[322469119,1713034248143,-465.13392178,0.00034,4]
[322469121,1713034248152,-253.9,0.00034091,2]
[322469123,1713034248161,-253.9,0.00034091,2]
[322469125,1713034248171,-500.0,0.00034245,7]
[322469127,1713034248181,-1404.8,0.00034245,7]
[322469129,1713034248191,-151.0,0.00034245,2]
[322469131,1713034248201,-166.831049,0.00034245,2]
[322469133,1713034248210,-166.831049,0.00034245,2]
[322469135,1713034248219,-184.233414,0.00034245,2]
[322469137,1713034248230,-184.233414,0.00034245,2]
[322469149,1713034248336,-500.0,0.00034246,7]
[322469151,1713034248346,-253.9,0.00034246,2]
[322469153,1713034248355,-253.9,0.00034246,2]
[322469155,1713034248364,-500.0,0.00034246,7]
[322469157,1713034248373,-151.0,0.00034246,2]
[322469159,1713034248382,-151.0,0.00034246,2]
[322469160,1713034248391,-734.77,0.00034246,7]
[322469162,1713034248400,-894.15,0.00034246,7]
[322469164,1713034248410,-500.0,0.00034246,7]
[322469166,1713034248419,-500.0,0.00034246,7]
[322469168,1713034248428,-1079.46,0.00034246,7]
[322469170,1713034248437,-151.0,0.00034246,2]
[322469172,1713034248445,-500.0,0.00034246,7]
[322469174,1713034248454,-694.657353,0.00034246,2]
[322469176,1713034248464,-694.657353,0.00034246,2]
[322469178,1713034248473,-694.657353,0.00034246,2]
[322469180,1713034248482,-694.657353,0.00034246,2]
[322469182,1713034248491,-500.0,0.00034246,7]
[322469184,1713034248500,-500.0,0.00034246,7]
[322469186,1713034248509,-849.98,0.00034246,7]
[322469188,1713034248519,-1998.2,0.00034246,7]
[322469190,1713034248528,-783.49,0.00034246,7]
[322469192,1713034248537,-500.0,0.00034246,7]
[322469194,1713034248546,-151.0,0.00034246,2]
[322469195,1713034248554,-900.938851,0.00034246,2]
[322469197,1713034248563,-900.938842,0.00034246,2]
[322469199,1713034248573,-412.228206,0.00034246,2]
[322469201,1713034248589,-412.228206,0.00034246,2]
[322469203,1713034248598,-500.0,0.00034246,7]
[322469205,1713034248607,-631.18,0.00034246,7]
[322469207,1713034248616,-500.0,0.00034246,7]
[322469209,1713034248625,-500.0,0.00034246,7]
[322469211,1713034248636,-500.0,0.00034246,7]
[322469213,1713034248647,-151.0,0.00034246,2]
[322469215,1713034248656,-166.831049,0.00034246,2]
[322469217,1713034248666,-166.831054,0.00034246,2]
[322469219,1713034248675,-500.0,0.00034246,7]
[322469221,1713034248685,-1108.29,0.00034246,7]
[322469223,1713034248694,-587.87770899,0.00034246,7]
[322469225,1713034248703,-1058.01,0.00034246,7]
[322469227,1713034248712,-151.0,0.00034246,2]
[322469229,1713034248723,-3130.05,0.00034246,7]
[322469231,1713034248732,-3156.38,0.00034246,7]
[322469233,1713034248741,-202.14408424,0.00034246,7]
[322469235,1713034248750,-2204.21,0.00034246,7]
[322469237,1713034248759,-1292.06,0.00034246,7]
[322469239,1713034248768,-2257.86,0.00034246,7]
[322469241,1713034248777,-184.233414,0.00034246,2]
[322469242,1713034248786,-184.233405,0.00034246,2]
[322469244,1713034248796,-2347.19,0.00034246,7]
[322469247,1713034248806,-2771.79,0.00034246,7]
[322469248,1713034248815,-5441.75,0.00034246,7]
[322469250,1713034248826,-519.91213259,0.00034246,7]
[322469252,1713034248839,-500.0,0.00034246,7]
[322469255,1713034248848,-816.31,0.00034246,7]
[322469256,1713034248858,-500.0,0.00034246,7]
[322469258,1713034248867,-530.91,0.00034246,7]
[322469260,1713034248877,-720.0,0.00034246,7]
[322469262,1713034248886,-219.5316839,0.00034246,7]
[322469264,1713034248896,-726.94,0.00034246,7]
[322469266,1713034248905,-695.69,0.00034246,7]
[322469268,1713034248914,-1012.3,0.00034246,7]
[322469270,1713034248923,-2327.61,0.00034246,7]
[322469272,1713034248933,-500.0,0.00034246,7]
[322469274,1713034248942,-858.26,0.00034246,7]
[322469276,1713034248950,-500.0,0.00034246,7]
[322469278,1713034248959,-1193.187531,0.00034246,2]
[322469280,1713034248969,-1193.187531,0.00034246,2]
[322469282,1713034248978,-927.05,0.00034246,7]
[322469284,1713034248987,-1193.187531,0.00034246,2]
[322469286,1713034248996,-1193.18753,0.00034246,2]
[322469288,1713034249006,-717.9,0.00034246,7]
[322469290,1713034249015,-2049.3,0.00034246,7]
[322469292,1713034249024,-1081.927643,0.00034246,2]
[322469294,1713034249034,-1081.927643,0.00034246,2]
[322469296,1713034249044,-1081.927643,0.00034246,2]
[322469298,1713034249054,-1081.92764,0.00034246,2]
[322469300,1713034249063,-1934.65,0.00034246,7]
[322469302,1713034249073,-500.0,0.00034246,7]
[322469304,1713034249087,-500.0,0.00034246,7]
[322469306,1713034249096,-1234.02,0.00034246,7]
[322469308,1713034249106,-660.39,0.00034246,7]
[322469310,1713034249115,-8360.86,0.00034246,7]
[322469312,1713034249124,-1086.08,0.00034246,7]
[322469314,1713034249133,-500.0,0.00034246,7]
[322469316,1713034249142,-30751.42,0.00034246,7]
[322469318,1713034249151,-940.83,0.00034246,7]
[322469319,1713034249160,-1345.11,0.00034246,2]
[322469321,1713034249170,-639.35,0.00034246,7]
[322469323,1713034249179,-2343.97,0.00034246,7]
[322469325,1713034249188,-867.98,0.00034246,7]
[322469327,1713034249196,-543.05183749,0.00034519,7]
[322469329,1713034249206,-1404.8,0.00034519,7]
[322469331,1713034249215,-253.9,0.00034519,2]
[322469333,1713034249224,-253.9,0.00034519,2]
[322469335,1713034249234,-151.0,0.00034519,2]
[322469337,1713034249243,-523.5808142,0.0003452,7]
[322469339,1713034249253,-253.9,0.0003452,2]
[322469341,1713034249263,-253.9,0.0003452,2]
[322469343,1713034249272,-500.0,0.0003452,7]
[322469345,1713034249281,-151.0,0.0003452,2]
[322469347,1713034249290,-734.77,0.0003452,7]
[322469349,1713034249299,-894.15,0.0003452,7]
[322469351,1713034249309,-500.0,0.0003452,7]
[322469353,1713034249318,-500.0,0.0003452,7]
[322469355,1713034249331,-1079.46,0.0003452,7]
[322469357,1713034249340,-500.0,0.0003452,7]
[322469359,1713034249349,-694.657353,0.0003452,2]
[322469361,1713034249358,-694.657359,0.0003452,2]
[322469363,1713034249366,-500.0,0.0003452,7]
[322469365,1713034249376,-500.0,0.0003452,7]
[322469367,1713034249385,-849.98,0.0003452,7]
[322469369,1713034249394,-1998.2,0.0003452,7]
[322469371,1713034249403,-783.49,0.0003452,7]
[322469373,1713034249412,-500.0,0.0003452,7]
[322469375,1713034249421,-151.0,0.0003452,2]
[322469376,1713034249430,-412.228206,0.0003452,2]
[322469378,1713034249439,-412.228216,0.0003452,2]
[322469380,1713034249449,-500.0,0.0003452,7]
[322469382,1713034249458,-631.18,0.0003452,7]
[322469384,1713034249467,-375.40417419,0.0003452,7]
[322469386,1713034249476,-500.0,0.0003452,7]
[322469388,1713034249485,-500.0,0.0003452,7]
[322469390,1713034249494,-565.38857818,0.0003452,7]
[322469391,1713034249503,-1108.29,0.0003452,7]
[322469392,1713034249512,-1058.01,0.0003452,7]
[322469393,1713034249521,-3130.05,0.0003452,7]
[322469394,1713034249530,-3156.38,0.0003452,7]
[322469395,1713034249540,-2204.21,0.0003452,7]
[322469396,1713034249549,-1292.06,0.0003452,7]
[322469397,1713034249558,-2257.86,0.0003452,7]
[322469398,1713034249567,-2347.19,0.0003452,7]
[322469399,1713034249577,-2771.79,0.0003452,7]
[322469400,1713034249586,-5441.75,0.0003452,7]
[322469401,1713034249595,-500.0,0.0003452,7]
[322469402,1713034249604,-816.31,0.0003452,7]
[322469403,1713034249613,-500.0,0.0003452,7]
[322469404,1713034249622,-530.91,0.0003452,7]
[322469405,1713034249630,-720.0,0.0003452,7]
[322469406,1713034249640,-726.94,0.0003452,7]
[322469407,1713034249654,-695.69,0.0003452,7]
[322469408,1713034249662,-1012.3,0.0003452,7]
[322469409,1713034249671,-2327.61,0.0003452,7]
[322469410,1713034249682,-858.26,0.0003452,7]
[322469411,1713034249691,-500.0,0.0003452,7]
[322469412,1713034249700,-927.05,0.0003452,7]
[322469413,1713034249708,-717.9,0.0003452,7]
[322469414,1713034249719,-2049.3,0.0003452,7]
[322469415,1713034249728,-1934.65,0.0003452,7]
[322469416,1713034249737,-500.0,0.0003452,7]
[322469417,1713034249746,-500.0,0.0003452,7]
[322469418,1713034249755,-1234.02,0.0003452,7]
[322469419,1713034249765,-660.39,0.0003452,7]
[322469421,1713034249774,-8360.86,0.0003452,7]
[322469422,1713034249783,-1086.08,0.0003452,7]
[322469423,1713034249792,-500.0,0.0003452,7]
[322469425,1713034249801,-30751.42,0.0003452,7]
[322469426,1713034249810,-940.83,0.0003452,7]
[322469428,1713034249819,-1345.11,0.0003452,2]
[322469430,1713034249831,-639.35,0.0003452,7]
[322469433,1713034249840,-2343.97,0.0003452,7]
[322469434,1713034249850,-867.98,0.0003452,7]
[322469436,1713034249860,-302.0,0.00034521,2]
[322469438,1713034249868,-32320.86032421,0.00034555,10]
[322469440,1713034249877,-151.0,0.00034555,2]
[322469442,1713034249886,-1267.83956526,0.00034728,12]
[322469444,1713034249895,-1404.8,0.00034793,7]
[322469446,1713034249904,-253.9,0.00034793,2]
[322469448,1713034249914,-253.9,0.00034793,2]
[322469450,1713034249923,-253.9,0.00034794,2]
[322469452,1713034249932,-253.9,0.00034794,2]
[322469454,1713034249941,-500.0,0.00034794,7]
[322469457,1713034249952,-734.77,0.00034794,7]
[322469459,1713034249961,-894.15,0.00034794,7]
[322469461,1713034249970,-624.80297726,0.00034794,7]
[322469462,1713034249978,-500.0,0.00034794,7]
[322469464,1713034249988,-1079.46,0.00034794,7]
[322469466,1713034249997,-500.0,0.00034794,7]
[322469468,1713034250006,-440.36320309,0.00034794,7]
[322469470,1713034250016,-500.0,0.00034794,7]
[322469473,1713034250026,-849.98,0.00034794,7]
[322469475,1713034250035,-1998.2,0.00034794,7]
[322469476,1713034250044,-783.49,0.00034794,7]
[322469478,1713034250053,-500.0,0.00034794,7]
[322469480,1713034250063,-500.0,0.00034794,7]
[322469482,1713034250073,-631.18,0.00034794,7]
[322469484,1713034250087,-500.0,0.00034794,7]
[322469487,1713034250096,-500.0,0.00034794,7]
[322469488,1713034250107,-1108.29,0.00034794,7]
[322469490,1713034250117,-1058.01,0.00034794,7]
[322469492,1713034250127,-3130.05,0.00034794,7]
[322469494,1713034250137,-3156.38,0.00034794,7]
[322469496,1713034250146,-2204.21,0.00034794,7]
[322469498,1713034250155,-1292.06,0.00034794,7]
[322469500,1713034250164,-2257.86,0.00034794,7]
[322469502,1713034250173,-2347.19,0.00034794,7]
[322469504,1713034250182,-2771.79,0.00034794,7]
[322469506,1713034250192,-5441.75,0.00034794,7]
[322469508,1713034250201,-500.0,0.00034794,7]
[322469510,1713034250211,-816.31,0.00034794,7]
[322469512,1713034250220,-500.0,0.00034794,7]
[322469514,1713034250230,-530.91,0.00034794,7]
[322469516,1713034250238,-720.0,0.00034794,7]
[322469518,1713034250248,-726.94,0.00034794,7]
[322469520,1713034250257,-695.69,0.00034794,7]
[322469522,1713034250267,-1012.3,0.00034794,7]
[322469524,1713034250279,-2327.61,0.00034794,7]
[322469526,1713034250288,-858.26,0.00034794,7]
[322469528,1713034250297,-500.0,0.00034794,7]
[322469530,1713034250306,-927.05,0.00034794,7]
[322469532,1713034250316,-717.9,0.00034794,7]
[322469534,1713034250325,-2049.3,0.00034794,7]
[322469536,1713034250338,-1934.65,0.00034794,7]
[322469538,1713034250347,-500.0,0.00034794,7]
[322469540,1713034250357,-500.0,0.00034794,7]
[322469542,1713034250366,-1234.02,0.00034794,7]
[322469545,1713034250376,-660.39,0.00034794,7]
[322469546,1713034250385,-8360.86,0.00034794,7]
[322469548,1713034250394,-1086.08,0.00034794,7]
[322469550,1713034250403,-500.0,0.00034794,7]
[322469552,1713034250412,-30751.42,0.00034794,7]
[322469554,1713034250422,-940.83,0.00034794,7]
[322469556,1713034250431,-1345.11,0.00034794,2]
[322469558,1713034250439,-639.35,0.00034794,7]
[322469560,1713034250448,-2343.97,0.00034794,7]
[322469562,1713034250458,-867.98,0.00034794,7]
[322469564,1713034250467,-156.5699296,0.00035,4]
[322469566,1713034250476,-596.67479795,0.00035,2]
[322469568,1713034250485,-600.0,0.00035,5]
[322469570,1713034250494,-1568.0824758,0.00035,4]
[322469572,1713034250503,-320.00259191,0.00035,30]
[322469574,1713034250512,-11530.61217274,0.00035,30]
[322469576,1713034250522,-186.15517096,0.00035,30]
[322469578,1713034250531,-26628.06424051,0.00035,7]
[322469580,1713034250539,-1058.83031175,0.00035,120]
[322469582,1713034250548,-153.0,0.00035041,2]
[322469584,1713034250559,-1404.8,0.00035067,7]
[322469586,1713034250568,-500.0,0.00035068,7]
[322469588,1713034250578,-734.77,0.00035068,7]
[322469590,1713034250588,-894.15,0.00035068,7]
[322469592,1713034250598,-500.0,0.00035068,7]
[322469594,1713034250607,-1079.46,0.00035068,7]
[322469596,1713034250616,-500.0,0.00035068,7]
[322469598,1713034250626,-500.0,0.00035068,7]
[322469600,1713034250635,-849.98,0.00035068,7]
[322469602,1713034250645,-1998.2,0.00035068,7]
[322469604,1713034250655,-783.49,0.00035068,7]
[322469606,1713034250665,-395.95040599,0.00035068,7]
[322469608,1713034250674,-500.0,0.00035068,7]